Workbook

Sheet Power Supply Config
F4: Project Name: | J4: Standby Hours: | L4: 24
F6: Project ID: | J6: Alarm Mins: | L6: 5
F8: Prepared By: | J8: Derating Factor: | L8: 1.2
B10: 6808 Battery Calculator (SD) | G10: Date: | J10: Voltage Drop Warning Threshold % :
B12: Version 18.05.29 | L12: 10
B15: Panel ID: | C15: 6808 | F15: Model: | G15: 6808 Add. Fire Alarm Control Panel | J15: Max NAC Current: | L15: 3.0 Amps
B17: Location: | F17: Volts: | G17: 24 VDC | J17: Max Panel Current: | L17: 5.0 Amps
B19: Ckt.# | C19: Circuit Name | E19: Qty | F19: Current Draw | H19: Wire AWG | I19: Ohms Per | J19: Length(ft) | K19: Actual | L19: Volts @ | M19: %Drop
F20: Standby | G20: Alarm | H20: & Type | I20: 1000 Ft. | J20: One-Way | K20: Ohms | L20: EOL
B21: 6808 | C21: 6808 CTRL Panel | E21: 1 | F21: 0.17 | G21: 0.365 | H21: =IF(SUM(E22:E33)<=127,IF(SUM(E38:E44)<=31,"N/A","# of Modules Exceeds Panel Capacity (31)"),"# of Points Exceeds Panel Capacity (127)") -> N/A
B22: SD500-AIM | C22: Addr. Input Mod | F22: =E22*0.00055 -> 0 | G22: =E22*0.00055 -> 0
B23: SD500-MIM | C23: Mini-Input Module | F23: 0 | G23: 0
B24: SD500-ARM | C24: Addr. Relay Module | F24: 0 | G24: 0
B25: SD500-PS | C25: Addr. Pull Station | F25: 0 | G25: 0
B26: SD505-HEAT | C26: Addr. Heat Detector | F26: 0 | G26: 0
B27: SD505-PHOTO | C27: Addr. Photo Smoke Det | F27: 0 | G27: 0
B28: SD505-DUCTR | C28: Addr. Duct w/Relay | F28: 0 | G28: 0
B29: SD505-DUCT | C29: Addr. Duct | F29: 0 | G29: 0
B30: SD500-ANM | C30: Addr. Notification Module | F30: 0 | G30: 0
B31: SD500-LED | C31: Addr. LED Module | F31: 0 | G31: 0
B32: SD500-SDM | C32: Addr. Smoke Det. Mod. | F32: 0 | G32: 0
B33: SD505-6RB | C33: Addr. Det. Relay Base | F33: =E33*0.000082 -> 0 | G33: =E33*0.000082 -> 0
B34: SD505-6SB | C34: Addr. Det. Sounder Base | F34: =E34*0.000082 -> 0 | G34: =E34*0.000082 -> 0
B35: SD505-6IB | C35: Addr. Det. Isolator Base | F35: =E35*0.000092 -> 0 | G35: =E35*0.000092 -> 0
B36: SD500-LIM | C36: Line Isolation Module | F36: =E36*0.000092 -> 0 | G36: =E36*0.000092 -> 0
B37: 6860 | C37: LCD Remote Annunc | F37: =E37*0.025 -> 0 | G37: =E37*0.05 -> 0
B38: 5824 | C38: Serial/Parallel Module | F38: =E38*0.045 -> 0 | G38: =E38*0.045 -> 0
B39: 5496 | C39: Power Expander | F39: =E39*0.01 -> 0 | G39: =E39*0.01 -> 0
B40: 5895XL | C40: Power Expander | F40: =E40*0.01 -> 0 | G40: =E40*0.01 -> 0
B41: 5865-4 | C41: LED Annunciator (4G) | F41: =E41*0.035 -> 0 | G41: =E41*0.145 -> 0
B42: 5865-3 | C42: LED Annunciator (3G) | F42: =E42*0.035 -> 0 | G42: =E42*0.145 -> 0
B43: 5880 | C43: LED Driver Module | F43: =E43*0.035 -> 0 | G43: =E43*0.2 -> 0
B44: 5883 | C44: Relay Module | F44: =E44*0 -> 0 | G44: =E44*0.2 -> 0
B45: SK-NIC | C45: Network Input Card | F45: =E45*0.021 -> 0 | G45: =E45*0.021 -> 0
B46: SK-FML | C46: Muilti-Mode Fiber Card | E46: 0 | F46: =E46*0.053 -> 0 | G46: =E46*0.053 -> 0
B47: SK-FSL | C47: Single-Mode Fiber Card | E47: 0 | F47: =E47*0.079 -> 0 | G47: =E47*0.079 -> 0
B48: NAC #1 | C48: =VLOOKUP(Data!C30,Data!$A$23:$B$25,2) -> Notification Appl Circuit | E48: =IF(G48>F48,G48,F48) -> 0 | F48: ='Circuit Config'!F24 -> 0 | G48: ='Circuit Config'!G24 -> 0 | H48: =VLOOKUP(Data!B14,Data!$A$3:$D$10,2) -> #14 Solid | I48: =VLOOKUP(Data!B14,Data!$A$3:$D$10,3) -> 2.52 | K48: =((J48*2)/1000)*I48 -> 0 | L48: =20.4-(E48*K48) -> 20.4 | M48: =IF(C48=Data!$B$24,"N/A",((20.4-L48)/20.4)) -> 0
B49: NAC #2 | C49: =VLOOKUP(Data!C31,Data!$A$23:$B$25,2) -> Notification Appl Circuit | E49: =IF(G49>F49,G49,F49) -> 0 | F49: ='Circuit Config'!F39 -> 0 | G49: ='Circuit Config'!G39 -> 0 | H49: =VLOOKUP(Data!B15,Data!$A$3:$D$10,2) -> #12 Solid | I49: =VLOOKUP(Data!B15,Data!$A$3:$D$10,3) -> 1.59 | K49: =((J49*2)/1000)*I49 -> 0 | L49: =20.4-(E49*K49) -> 20.4 | M49: =IF(C49=Data!$B$24,"N/A",((20.4-L49)/20.4)) -> 0
B50: NAC #3 | C50: =VLOOKUP(Data!C32,Data!$A$23:$B$25,2) -> Notification Appl Circuit | E50: =IF(G50>F50,G50,F50) -> 0 | F50: ='Circuit Config'!F54 -> 0 | G50: ='Circuit Config'!G54 -> 0 | H50: =VLOOKUP(Data!B16,Data!$A$3:$D$10,2) -> #12 Solid | I50: =VLOOKUP(Data!B16,Data!$A$3:$D$10,3) -> 1.59 | K50: =((J50*2)/1000)*I50 -> 0 | L50: =20.4-(E50*K50) -> 20.4 | M50: =IF(C50=Data!$B$24,"N/A",((20.4-L50)/20.4)) -> 0
B51: NAC #4 | C51: =VLOOKUP(Data!C33,Data!$A$23:$B$25,2) -> Notification Appl Circuit | E51: =IF(G51>F51,G51,F51) -> 0 | F51: ='Circuit Config'!F69 -> 0 | G51: ='Circuit Config'!G69 -> 0 | H51: =VLOOKUP(Data!B17,Data!$A$3:$D$10,2) -> #12 Solid | I51: =VLOOKUP(Data!B17,Data!$A$3:$D$10,3) -> 1.59 | K51: =((J51*2)/1000)*I51 -> 0 | L51: =20.4-(E51*K51) -> 20.4 | M51: =IF(C51=Data!$B$24,"N/A",((20.4-L51)/20.4)) -> 0
B52: Total Standby Current (Amps) | F52: =SUM(F21:F51) -> 0.17 | G52: =SUM(G21:G51) -> 0.365 | H52: Total Alarm Current (Amps)
B53: Standby Time In Hours | F53: =$L$4 -> 24 | G53: =$L$6/60 -> 0.08333333333 | H53: Alarm Time In Minutes / 60 | J53: ="("&$L$6&" Mins)" -> (5 Mins)
B54: Total Standby AH Required | F54: =F53*F52 -> 4.08 | G54: =G53*G52 -> 0.03041666667 | H54: Total Alarm AH Required
B55: Total Combined AH Required | F55: =F54+G54 -> 4.110416667 | H55: Command Shortcuts
B56: Multiply By The Derating Factor | F56: =$L$8 -> 1.2
B57: Minimum Battery AmpHours Required | F57: =F55*F56 -> 4.9325

Sheet Smokes
C1: Device Database
C2: Device Database
G3: Command Shortcuts
B5: Item# | C5: Device / Description | D5: Current Draw In Amperes
D6: Standby | E6: *Alarm
B7: 1 | C7: Unused
B8: 2 | C8: Gentex GCC24 Horn/Strobe (15cd) | D8: 0 | E8: 0.143
B9: 3 | C9: Gentex GCC24 Horn/Strobe (30cd) | D9: 0 | E9: 0.153
B10: 4 | C10: Gentex GCC24 Horn/Strobe (75cd) | D10: 0 | E10: 0.27
B11: 5 | C11: Gentex GCC24 Horn/Strobe (95cd) | D11: 0 | E11: 0.341
B12: 6 | C12: Gentex GCC24 Horn/Strobe (115cd) | D12: 0 | E12: 0.383
B13: 7 | C13: Gentex GCC24 Horn/Strobe (150cd) | D13: 0 | E13: 0.477
B14: 8 | C14: Gentex GCS24 Strobe (15cd) | D14: 0 | E14: 0.12
B15: 9 | C15: Gentex GCS24 Strobe (30cd) | D15: 0 | E15: 0.13
B16: 10 | C16: Gentex GCS24 Strobe (75cd) | D16: 0 | E16: 0.247
B17: 11 | C17: Gentex GCS24 Strobe (95cd) | D17: 0 | E17: 0.318
B18: 12 | C18: Gentex GCS24 Strobe (115cd) | D18: 0 | E18: 0.36
B19: 13 | C19: Gentex GCS24 Strobe (150cd) | D19: 0 | E19: 0.454
B20: 14 | C20: Gentex GEC324 Horn/Strobe (15cd) | D20: 0 | E20: 0.134
B21: 15 | C21: Gentex GEC324 Horn/Strobe (30cd) | D21: 0 | E21: 0.152
B22: 16 | C22: Gentex GEC324 Horn/Strobe (60cd) | D22: 0 | E22: 0.193
B23: 17 | C23: Gentex GEC324 Horn/Strobe (75cd) | D23: 0 | E23: 0.236
B24: 18 | C24: Gentex GEC324 Horn/Strobe (110cd) | D24: 0 | E24: 0.28
B25: 19 | C25: Gentex GES324 Strobe (15cd) | D25: 0 | E25: 0.078
B26: 20 | C26: Gentex GES324 Strobe (30cd) | D26: 0 | E26: 0.096
B27: 21 | C27: Gentex GES324 Strobe (60cd) | D27: 0 | E27: 0.137
B28: 22 | C28: Gentex GES324 Strobe (75cd) | D28: 0 | E28: 0.18
B29: 23 | C29: Gentex GES324 Strobe (110cd) | D29: 0 | E29: 0.224
B30: 24 | C30: Gentex GEC24 Horn/Strobe (15cd) | D30: 0 | E30: 0.133
B31: 25 | C31: Gentex GEC24 Horn/Strobe (30cd) | D31: 0 | E31: 0.151
B32: 26 | C32: Gentex GEC24 Horn/Strobe (60cd) | D32: 0 | E32: 0.192
B33: 27 | C33: Gentex GEC24 Horn/Strobe (75cd) | D33: 0 | E33: 0.235
B34: 28 | C34: Gentex GEC24 Horn/Strobe (110cd) | D34: 0 | E34: 0.279
B35: 29 | C35: Gentex GEC24 Horn/Strobe (177cd) | D35: 0 | E35: 0.343
B36: 30 | C36: Gentex GEH24 Horn | D36: 0 | E36: 0.056
B37: 31 | C37: Gentex GES24 Strobe (15cd) | D37: 0 | E37: 0.078
B38: 32 | C38: Gentex GES24 Strobe (30cd) | D38: 0 | E38: 0.096
B39: 33 | C39: Gentex GES24 Strobe (60cd) | D39: 0 | E39: 0.137
B40: 34 | C40: Gentex GES24 Strobe (75cd) | D40: 0 | E40: 0.18
B41: 35 | C41: Gentex GES24 Strobe (110cd) | D41: 0 | E41: 0.224
B42: 36 | C42: Gentex GES24 Strobe (177cd) | D42: 0 | E42: 0.288
B43: 37 | C43: Gentex GX91 Mini-Horn (Continuous) | D43: 0 | E43: 0.015
B44: 38 | C44: Gentex GX93 Mini-Horn (Temporal) | D44: 0 | E44: 0.022
B45: 39 | C45: Gentex WGE Strobe (75cd) | D45: 0 | E45: 0.18
B46: 40 | C46: Gentex WGEC Horn/Strobe (75cd) | D46: 0 | E46: 0.236
B47: 41 | C47: Silent Knight end of line relay EOL-1224RLY | D47: 0.015 | E47: 0.015
B48: 42 | C48: System Sensor CH Chime | D48: 0 | E48: 0.054
B49: 43 | C49: System Sensor CHS Chime/Stobe (15cd) | D49: 0 | E49: 0.07
B50: 44 | C50: System Sensor CHS Chime/Stobe (15/75cd) | D50: 0 | E50: 0.081
B51: 45 | C51: System Sensor CHS Chime/Strobe (30cd) | D51: 0 | E51: 0.099
B52: 46 | C52: System Sensor CHS Chime/Strobe (75cd) | D52: 0 | E52: 0.165
B53: 47 | C53: System Sensor CHS Chime/Strobe (95cd) | D53: 0 | E53: 0.189
B54: 48 | C54: System Sensor CHS Chime/Strobe (110cd) | D54: 0 | E54: 0.21
B55: 49 | C55: System Sensor CHS Chime/Strobe (115cd) | D55: 0 | E55: 0.217
B56: 50 | C56: System Sensor HR/HRK/HW Horn | D56: 0 | E56: 0.069
B57: 51 | C57: System Sensor MH Mini-Horn | D57: 0 | E57: 0.029
B58: 52 | C58: System Sensor P2/PC2 Horn/Strobe (15cd) | D58: 0 | E58: 0.091
B59: 53 | C59: System Sensor P2/PC2 Horn/Strobe (15/75cd) | D59: 0 | E59: 0.1
B60: 54 | C60: System Sensor P2/PC2 Horn/Strobe (30cd) | D60: 0 | E60: 0.116
B61: 55 | C61: System Sensor P2/PC2 Horn/Strobe (75cd) | D61: 0 | E61: 0.176
B62: 56 | C62: System Sensor P2/PC2 Horn/Strobe (95cd) | D62: 0 | E62: 0.201
B63: 57 | C63: System Sensor P2/PC2 Horn/Strobe (110cd) | D63: 0 | E63: 0.221
B64: 58 | C64: System Sensor P2/PC2 Horn/Strobe (115cd) | D64: 0 | E64: 0.229
B65: 59 | C65: System Sensor P2/PC2 Horn/Strobe (135cd) | D65: 0 | E65: 0.255
B66: 60 | C66: System Sensor P2/PC2 Horn/Strobe (150cd) | D66: 0 | E66: 0.27
B67: 61 | C67: System Sensor P2/PC2 Horn/Strobe (177cd) | D67: 0 | E67: 0.302
B68: 62 | C68: System Sensor P2/PC2 Horn/Strobe (185cd) | D68: 0 | E68: 0.309
B69: 63 | C69: System Sensor S/SC Strobe (15cd) | D69: 0 | E69: 0.066
B70: 64 | C70: System Sensor S/SC Strobe (15/75cd) | D70: 0 | E70: 0.077
B71: 65 | C71: System Sensor S/SC Strobe (30cd) | D71: 0 | E71: 0.094
B72: 66 | C72: System Sensor S/SC Strobe (75cd) | D72: 0 | E72: 0.158
B73: 67 | C73: System Sensor S/SC Strobe (95cd) | D73: 0 | E73: 0.181
B74: 68 | C74: System Sensor S/SC Strobe (110cd) | D74: 0 | E74: 0.202
B75: 69 | C75: System Sensor S/SC Strobe (115cd) | D75: 0 | E75: 0.21
B76: 70 | C76: System Sensor S/SC Strobe (135cd) | D76: 0 | E76: 0.228
B77: 71 | C77: System Sensor S/SC Strobe (150cd) | D77: 0 | E77: 0.246
B78: 72 | C78: System Sensor S/SC Strobe (177cd) | D78: 0 | E78: 0.281
B79: 73 | C79: System Sensor S/SC Strobe (185cd) | D79: 0 | E79: 0.286
B80: 74 | C80: System Sensor CHL Chime | D80: 0 | E80: 0.015
B81: 75 | C81: System Sensor CHSL Wall Chime/Strobe (15cd) | D81: 0 | E81: 0.052
B82: 76 | C82: System Sensor CHSL Wall Chime/Strobe (30cd) | D82: 0 | E82: 0.072
B83: 77 | C83: System Sensor CHSL Wall Chime/Strobe (75cd) | D83: 0 | E83: 0.117
B84: 78 | C84: System Sensor CHSL Wall Chime/Strobe (95cd) | D84: 0 | E84: 0.137
B85: 79 | C85: System Sensor CHSL Wall Chime/Strobe (110cd) | D85: 0 | E85: 0.176
B86: 80 | C86: System Sensor CHSL Wall Chime/Strobe (135cd) | D86: 0 | E86: 0.206
B87: 81 | C87: System Sensor CHSL Wall Chime/Strobe (185cd) | D87: 0 | E87: 0.246
B88: 82 | C88: System Sensor CHSCL Ceiling Chime/Strobe (15cd) | D88: 0 | E88: 0.054
B89: 83 | C89: System Sensor CHSCL Ceiling Chime/Strobe (30cd) | D89: 0 | E89: 0.077
B90: 84 | C90: System Sensor CHSCL Ceiling Chime/Strobe (75cd) | D90: 0 | E90: 0.124
B91: 85 | C91: System Sensor CHSCL Ceiling Chime/Strobe (95cd) | D91: 0 | E91: 0.146
B92: 86 | C92: System Sensor CHSCL Ceiling Chime/Strobe (115cd) | D92: 0 | E92: 0.173
B93: 87 | C93: System Sensor CHSCL Ceiling Chime/Strobe (150cd) | D93: 0 | E93: 0.206
B94: 88 | C94: System Sensor CHSCL Ceiling Chime/Strobe (177cd) | D94: 0 | E94: 0.245
B95: 89 | C95: System Sensor HL/HGL Horn | D95: 0 | E95: 0.047
B96: 90 | C96: System Sensor P2L Wall Horn/Strobe (15 cd) | D96: 0 | E96: 0.073
B97: 91 | C97: System Sensor P2L Wall Horn/Strobe (30 cd) | D97: 0 | E97: 0.94
B98: 92 | C98: System Sensor P2L Wall Horn/Strobe (75 cd) | D98: 0 | E98: 0.139
B99: 93 | C99: System Sensor P2L Wall Horn/Strobe (95 cd) | D99: 0 | E99: 0.16
B100: 94 | C100: System Sensor P2L Wall Horn/Strobe (110 cd) | D100: 0 | E100: 0.182
B101: 95 | C101: System Sensor P2L Wall Horn/Strobe (135 cd) | D101: 0 | E101: 0.211
B102: 96 | C102: System Sensor P2L Wall Horn/Strobe (185 cd) | D102: 0 | E102: 0.262
B103: 97 | C103: System Sensor PC2L Ceiling Horn/Strobe (15 cd) | D103: 0 | E103: 0.071
B104: 98 | C104: System Sensor PC2L Ceiling Horn/Strobe (30 cd) | D104: 0 | E104: 0.094
B105: 99 | C105: System Sensor PC2L Ceiling Horn/Strobe (75 cd) | D105: 0 | E105: 0.147
B106: 100 | C106: System Sensor PC2L Ceiling Horn/Strobe (95 cd) | D106: 0 | E106: 0.165
B107: 101 | C107: System Sensor PC2L Ceiling Horn/Strobe (115 cd) | D107: 0 | E107: 0.202
B108: 102 | C108: System Sensor PC2L Ceiling Horn/Strobe (150 cd) | D108: 0 | E108: 0.23
B109: 103 | C109: System Sensor PC2L Ceiling Horn/Strobe (177 cd) | D109: 0 | E109: 0.273
B110: 104 | C110: System Sensor SL Wall Strobe (15cd) | D110: 0 | E110: 0.043
B111: 105 | C111: System Sensor SL Wall Strobe (30cd) | D111: 0 | E111: 0.063
B112: 106 | C112: System Sensor SL Wall Strobe (75cd) | D112: 0 | E112: 0.107
B113: 107 | C113: System Sensor SL Wall Strobe (95cd) | D113: 0 | E113: 0.121
B114: 108 | C114: System Sensor SL Wall Strobe (110cd) | D114: 0 | E114: 0.148
B115: 109 | C115: System Sensor SL Wall Strobe (135cd) | D115: 0 | E115: 0.172
B116: 110 | C116: System Sensor SL Wall Strobe (185cd) | D116: 0 | E116: 0.222
B117: 111 | C117: System Sensor SCL Ceiling Strobe (15 cd) | D117: 0 | E117: 0.041
B118: 112 | C118: System Sensor SCL Ceiling Strobe (30 cd) | D118: 0 | E118: 0.063
B119: 113 | C119: System Sensor SCL Ceiling Strobe (75 cd) | D119: 0 | E119: 0.111
B120: 114 | C120: System Sensor SCL Ceiling Strobe (95 cd) | D120: 0 | E120: 0.134
B121: 115 | C121: System Sensor SCL Ceiling Strobe (115 cd) | D121: 0 | E121: 0.158
B122: 116 | C122: System Sensor SCL Ceiling Strobe (150 cd) | D122: 0 | E122: 0.189
B123: 117 | C123: System Sensor SCL Ceiling Strobe (177 cd) | D123: 0 | E123: 0.226
B124: 118 | C124: System Sensor HR-LF | D124: 0 | E124: 0.153
B125: 119 | C125: System Sensor HW-LF | D125: 0 | E125: 0.153
B126: 120 | C126: System Sensor P2RH-LF | D126: 0 | E126: 0.337
B127: 121 | C127: System Sensor P2WH-LF | D127: 0 | E127: 0.337
B128: 122 | C128: Wheelock AH24 Horn | D128: 0 | E128: 0.08
B129: 123 | C129: Wheelock AS241575 Horn/Strobe (1575cd) | D129: 0 | E129: 0.201
B130: 124 | C130: Wheelock AS24MCW Horn/Strobe (15cd) | D130: 0 | E130: 0.168
B131: 125 | C131: Wheelock AS24MCW Horn/Strobe (30cd) | D131: 0 | E131: 0.205
B132: 126 | C132: Wheelock AS24MCW Horn/Strobe (75cd) | D132: 0 | E132: 0.28
B133: 127 | C133: Wheelock AS24MCW Horn/Strobe (110cd) | D133: 0 | E133: 0.347
B134: 128 | C134: Wheelock AS24MCWH Horn/Strobe (135cd) | D134: 0 | E134: 0.435
B135: 129 | C135: Wheelock AS24MCWH Horn/Strobe (185cd) | D135: 0 | E135: 0.56
B136: 130 | C136: Wheelock AS24MCC Horn/Strobe (15cd) | D136: 0 | E136: 0.175
B137: 131 | C137: Wheelock AS24MCC Horn/Strobe (30cd) | D137: 0 | E137: 0.218
B138: 132 | C138: Wheelock AS24MCC Horn/Strobe (75cd) | D138: 0 | E138: 0.301
B139: 133 | C139: Wheelock AS24MCC Horn/Strobe (95cd) | D139: 0 | E139: 0.365
B140: 134 | C140: Wheelock AS24MCCH Horn/Strobe (115cd) | D140: 0 | E140: 0.435
B141: 135 | C141: Wheelock AS24MCCH Horn/Strobe (177cd) | D141: 0 | E141: 0.56
B142: 136 | C142: Wheelock CH70 Chime | D142: 0 | E142: 0.022
B143: 137 | C143: Wheelock CH70241575 Chime/Strobe (1575cd) | D143: 0 | E143: 0.112
B144: 138 | C144: Wheelock CH7024MCW Chime/Strobe (15cd) | D144: 0 | E144: 0.082
B145: 139 | C145: Wheelock CH7024MCW Chime/Strobe (30cd) | D145: 0 | E145: 0.114
B146: 140 | C146: Wheelock CH7024MCW Chime/Strobe (75cd) | D146: 0 | E146: 0.187
B147: 141 | C147: Wheelock CH7024MCW Chime/Strobe (110cd) | D147: 0 | E147: 0.242
B148: 142 | C148: Wheelock CH7024MCWH Chime/Strobe (135cd) | D148: 0 | E148: 0.322
B149: 143 | C149: Wheelock CH7024MCWH Chime/Strobe (185cd) | D149: 0 | E149: 0.442
B150: 144 | C150: Wheelock CH90 Chime | D150: 0 | E150: 0.022
B151: 145 | C151: Wheelock CH9024MCC Chime/Strobe (15cd) | D151: 0 | E151: 0.087
B152: 146 | C152: Wheelock CH9024MCC Chime/Strobe (30cd) | D152: 0 | E152: 0.127
B153: 147 | C153: Wheelock CH9024MCC Chime/Strobe (75cd) | D153: 0 | E153: 0.211
B154: 148 | C154: Wheelock CH9024MCC Chime/Strobe (95cd) | D154: 0 | E154: 0.271
B155: 149 | C155: Wheelock CH9024MCCH Chime/Strobe (115cd) | D155: 0 | E155: 0.322
B156: 150 | C156: Wheelock CH9024MCCH Chime/Strobe (177cd) | D156: 0 | E156: 0.442
B157: 151 | C157: Wheelock HS24 Horn | D157: 0 | E157: 0.11
B158: 152 | C158: Wheelock HS24MCC Horn/Strobe (15cd) | D158: 0 | E158: 0.175
B159: 153 | C159: Wheelock HS24MCC Horn/Strobe (30cd) | D159: 0 | E159: 0.215
B160: 154 | C160: Wheelock HS24MCC Horn/Strobe (75cd) | D160: 0 | E160: 0.299
B161: 155 | C161: Wheelock HS24MCC Horn/Strobe (95cd) | D161: 0 | E161: 0.359
B162: 156 | C162: Wheelock HS24MCCH Horn/Strobe (115cd) | D162: 0 | E162: 0.41
B163: 157 | C163: Wheelock HS24MCCH Horn/Strobe (177cd) | D163: 0 | E163: 0.53
B164: 158 | C164: Wheelock HS4241575W Horn/Strobe (1575cd) | D164: 0 | E164: 0.2
B165: 159 | C165: Wheelock HS424MCW Horn/Strobe (15cd) | D165: 0 | E165: 0.17
B166: 160 | C166: Wheelock HS424MCW Horn/Strobe (30cd) | D166: 0 | E166: 0.202
B167: 161 | C167: Wheelock HS424MCW Horn/Strobe (75cd) | D167: 0 | E167: 0.275
B168: 162 | C168: Wheelock HS424MCW Horn/Strobe (110cd) | D168: 0 | E168: 0.33
B169: 163 | C169: Wheelock HS424MCWH Horn/Strobe (135cd) | D169: 0 | E169: 0.41
B170: 164 | C170: Wheelock HS424MCWH Horn/Strobe (185cd) | D170: 0 | E170: 0.53
B171: 165 | C171: Wheelock MT24 Multitone Appliance | D171: 0 | E171: 0.142
B172: 166 | C172: Wheelock MT241575 Multitone/Strobe (1575cd) | D172: 0 | E172: 0.232
B173: 167 | C173: Wheelock MTWP2475 Multitone/Strobe (180cd) | D173: 0 | E173: 0.28
B174: =B173+1 -> 168 | C174: Wheelock MT24MCW Multitone/Strobe (15cd) | D174: 0 | E174: 0.202
B175: 169 | C175: Wheelock MT24MCW Multitone/Strobe (30cd) | D175: 0 | E175: 0.234
B176: 170 | C176: Wheelock MT24MCW Multitone/Strobe (75cd) | D176: 0 | E176: 0.307
B177: 171 | C177: Wheelock MT24MCW Multitone/Strobe (110cd) | D177: 0 | E177: 0.362
B178: 172 | C178: Wheelock NH24 Horn | D178: 0 | E178: 0.044
B179: 173 | C179: Wheelock NS241575W Horn/Strobe (1575cd) | D179: 0 | E179: 0.148
B180: 174 | C180: Wheelock NS24MCW Horn/Strobe (15cd) | D180: 0 | E180: 0.118
B181: 175 | C181: Wheelock NS24MCW Horn/Strobe (30cd) | D181: 0 | E181: 0.151
B182: 176 | C182: Wheelock NS24MCW Horn/Strobe (75cd) | D182: 0 | E182: 0.228
B183: 177 | C183: Wheelock NS24MCW Horn/Strobe (110cd) | D183: 0 | E183: 0.288
B184: 178 | C184: Wheelock NS24MCC Horn/Strobe (15cd) | D184: 0 | E184: 0.126
B185: 179 | C185: Wheelock NS24MCC Horn/Strobe (30cd) | D185: 0 | E185: 0.168
B186: 180 | C186: Wheelock NS24MCC Horn/Strobe (75cd) | D186: 0 | E186: 0.253
B187: 181 | C187: Wheelock NS24MCC Horn/Strobe (95cd) | D187: 0 | E187: 0.319
B188: 182 | C188: Wheelock NS24MCCH Horn/Strobe (115cd) | D188: 0 | E188: 0.394
B189: 183 | C189: Wheelock NS24MCCH Horn/Strobe (177cd) | D189: 0 | E189: 0.521
B190: 184 | C190: Wheelock RSS/RSSP241575W Strobe (1575cd) | D190: 0 | E190: 0.09
B191: 185 | C191: Wheelock RSS/RSSP24MCW Strobe (15cd) | D191: 0 | E191: 0.06
B192: 186 | C192: Wheelock RSS/RSSP24MCW Strobe (30cd) | D192: 0 | E192: 0.092
B193: 187 | C193: Wheelock RSS/RSSP24MCW Strobe (75cd) | D193: 0 | E193: 0.165
B194: 188 | C194: Wheelock RSS/RSSP24MCW Strobe (110cd) | D194: 0 | E194: 0.22
B195: 189 | C195: Wheelock RSS/RSSP24MCWH Strobe (135cd) | D195: 0 | E195: 0.3
B196: 190 | C196: Wheelock RSS/RSSP24MCWH Strobe (185cd) | D196: 0 | E196: 0.42
B197: 191 | C197: Wheelock RSS/RSSP24MCC Strobe (15cd) | D197: 0 | E197: 0.065
B198: 192 | C198: Wheelock RSS/RSSP24MCC Strobe (30cd) | D198: 0 | E198: 0.105
B199: 193 | C199: Wheelock RSS/RSSP24MCC Strobe (75cd) | D199: 0 | E199: 0.189
B200: 194 | C200: Wheelock RSS/RSSP24MCC Strobe (95cd) | D200: 0 | E200: 0.249
B201: 195 | C201: Wheelock RSS/RSSP24MCCH Strobe (115cd) | D201: 0 | E201: 0.3
... 10 more rows

Sheet Circuit Config
C2: Circuit Configuration
B7: Project Name: | C7: ='Power Supply Config'!H4 -> 0 | D7: Project ID: | F7: ='Power Supply Config'!H6 -> 0 | G7: ='Power Supply Config'!J6 -> Alarm Mins:
B9: Prepared By: | C9: ='Power Supply Config'!H8 -> 0 | D9: Date: | F9: ='Power Supply Config'!H10 -> 00:00:00 | G9: ='Power Supply Config'!J10 -> Voltage Drop Warning Threshold % :
B13: Ckt. Number: | C13: ='Power Supply Config'!B48 -> NAC #1 | D13: Panel ID: | E13: ='Power Supply Config'!$C$15 -> 6808
B15: Ckt. Name: | C15: ='Power Supply Config'!C48:D48 -> Notification Appl Circuit | D15: Use:
B17: Qty | C17: Device | D17: Current Draw Each | F17: Current Draw Total
D18: Standby | E18: Alarm | F18: Standby | G18: Alarm
C19: =VLOOKUP(H19,Smokes!$B$7:$E$168,2) -> Unused | D19: =VLOOKUP(H19,Smokes!$B$7:$E$168,3) -> 0 | E19: =VLOOKUP(H19,Smokes!$B$7:$E$168,4) -> 0 | F19: =B19*D19 -> 0 | G19: =B19*E19 -> 0 | H19: 1
C20: =VLOOKUP(H20,Smokes!$B$7:$E$168,2) -> Unused | D20: =VLOOKUP(H20,Smokes!$B$7:$E$168,3) -> 0 | E20: =VLOOKUP(H20,Smokes!$B$7:$E$168,4) -> 0 | F20: =B20*D20 -> 0 | G20: =B20*E20 -> 0 | H20: 1
C21: =VLOOKUP(H21,Smokes!$B$7:$E$168,2) -> Unused | D21: =VLOOKUP(H21,Smokes!$B$7:$E$168,3) -> 0 | E21: =VLOOKUP(H21,Smokes!$B$7:$E$168,4) -> 0 | F21: =B21*D21 -> 0 | G21: =B21*E21 -> 0 | H21: 1
C22: =VLOOKUP(H22,Smokes!$B$7:$E$168,2) -> Unused | D22: =VLOOKUP(H22,Smokes!$B$7:$E$168,3) -> 0 | E22: =VLOOKUP(H22,Smokes!$B$7:$E$168,4) -> 0 | F22: =B22*D22 -> 0 | G22: =B22*E22 -> 0 | H22: 1
F23: =B23*D23 -> 0 | G23: =B23*E23 -> 0
E24: Totals | F24: =SUM(F19:F23) -> 0 | G24: =SUM(G19:G23) -> 0
B28: Ckt. Number: | C28: ='Power Supply Config'!B49 -> NAC #2 | D28: Panel ID: | E28: ='Power Supply Config'!$C$15 -> 6808
B30: Ckt. Name: | C30: ='Power Supply Config'!C49:D49 -> Notification Appl Circuit | D30: Use:
B32: Qty | C32: Device | D32: Current Draw Each | F32: Current Draw Total
D33: Standby | E33: Alarm | F33: Standby | G33: Alarm
C34: =VLOOKUP(H34,Smokes!$B$7:$E$168,2) -> Unused | D34: =VLOOKUP(H34,Smokes!$B$7:$E$168,3) -> 0 | E34: =VLOOKUP(H34,Smokes!$B$7:$E$168,4) -> 0 | F34: =B34*D34 -> 0 | G34: =B34*E34 -> 0 | H34: 1
C35: =VLOOKUP(H35,Smokes!$B$7:$E$168,2) -> Unused | D35: =VLOOKUP(H35,Smokes!$B$7:$E$168,3) -> 0 | E35: =VLOOKUP(H35,Smokes!$B$7:$E$168,4) -> 0 | F35: =B35*D35 -> 0 | G35: =B35*E35 -> 0 | H35: 1
C36: =VLOOKUP(H36,Smokes!$B$7:$E$168,2) -> Unused | D36: =VLOOKUP(H36,Smokes!$B$7:$E$168,3) -> 0 | E36: =VLOOKUP(H36,Smokes!$B$7:$E$168,4) -> 0 | F36: =B36*D36 -> 0 | G36: =B36*E36 -> 0 | H36: 1
C37: =VLOOKUP(H37,Smokes!$B$7:$E$168,2) -> Unused | D37: =VLOOKUP(H37,Smokes!$B$7:$E$168,3) -> 0 | E37: =VLOOKUP(H37,Smokes!$B$7:$E$168,4) -> 0 | F37: =B37*D37 -> 0 | G37: =B37*E37 -> 0 | H37: 1
F38: =B38*D38 -> 0 | G38: =B38*E38 -> 0
E39: Totals | F39: =SUM(F34:F38) -> 0 | G39: =SUM(G34:G38) -> 0
B43: Ckt. Number: | C43: ='Power Supply Config'!B50 -> NAC #3 | D43: Panel ID: | E43: ='Power Supply Config'!$C$15 -> 6808
B45: Ckt. Name: | C45: ='Power Supply Config'!C50:D50 -> Notification Appl Circuit | D45: Use:
B47: Qty | C47: Device | D47: Current Draw Each | F47: Current Draw Total
D48: Standby | E48: Alarm | F48: Standby | G48: Alarm
C49: =VLOOKUP(H49,Smokes!$B$7:$E$168,2) -> Unused | D49: =VLOOKUP(H49,Smokes!$B$7:$E$168,3) -> 0 | E49: =VLOOKUP(H49,Smokes!$B$7:$E$168,4) -> 0 | F49: =B49*D49 -> 0 | G49: =B49*E49 -> 0 | H49: 1
C50: =VLOOKUP(H50,Smokes!$B$7:$E$168,2) -> Unused | D50: =VLOOKUP(H50,Smokes!$B$7:$E$168,3) -> 0 | E50: =VLOOKUP(H50,Smokes!$B$7:$E$168,4) -> 0 | F50: =B50*D50 -> 0 | G50: =B50*E50 -> 0 | H50: 1
C51: =VLOOKUP(H51,Smokes!$B$7:$E$168,2) -> Unused | D51: =VLOOKUP(H51,Smokes!$B$7:$E$168,3) -> 0 | E51: =VLOOKUP(H51,Smokes!$B$7:$E$168,4) -> 0 | F51: =B51*D51 -> 0 | G51: =B51*E51 -> 0 | H51: 1
C52: =VLOOKUP(H52,Smokes!$B$7:$E$168,2) -> Unused | D52: =VLOOKUP(H52,Smokes!$B$7:$E$168,3) -> 0 | E52: =VLOOKUP(H52,Smokes!$B$7:$E$168,4) -> 0 | F52: =B52*D52 -> 0 | G52: =B52*E52 -> 0 | H52: 1
F53: =B53*D53 -> 0 | G53: =B53*E53 -> 0
E54: Totals | F54: =SUM(F49:F53) -> 0 | G54: =SUM(G49:G53) -> 0
B58: Ckt. Number: | C58: ='Power Supply Config'!B51 -> NAC #4 | D58: Panel ID: | E58: ='Power Supply Config'!$C$15 -> 6808
B60: Ckt. Name: | C60: ='Power Supply Config'!C51:D51 -> Notification Appl Circuit | D60: Use:
B62: Qty | C62: Device | D62: Current Draw Each | F62: Current Draw Total
D63: Standby | E63: Alarm | F63: Standby | G63: Alarm
C64: =VLOOKUP(H64,Smokes!$B$7:$E$168,2) -> Unused | D64: =VLOOKUP(H64,Smokes!$B$7:$E$168,3) -> 0 | E64: =VLOOKUP(H64,Smokes!$B$7:$E$168,4) -> 0 | F64: =B64*D64 -> 0 | G64: =B64*E64 -> 0 | H64: 1
C65: =VLOOKUP(H65,Smokes!$B$7:$E$168,2) -> Unused | D65: =VLOOKUP(H65,Smokes!$B$7:$E$168,3) -> 0 | E65: =VLOOKUP(H65,Smokes!$B$7:$E$168,4) -> 0 | F65: =B65*D65 -> 0 | G65: =B65*E65 -> 0 | H65: 1
C66: =VLOOKUP(H66,Smokes!$B$7:$E$168,2) -> Unused | D66: =VLOOKUP(H66,Smokes!$B$7:$E$168,3) -> 0 | E66: =VLOOKUP(H66,Smokes!$B$7:$E$168,4) -> 0 | F66: =B66*D66 -> 0 | G66: =B66*E66 -> 0 | H66: 1
C67: =VLOOKUP(H67,Smokes!$B$7:$E$168,2) -> Unused | D67: =VLOOKUP(H67,Smokes!$B$7:$E$168,3) -> 0 | E67: =VLOOKUP(H67,Smokes!$B$7:$E$168,4) -> 0 | F67: =B67*D67 -> 0 | G67: =B67*E67 -> 0 | H67: 1
F68: =B68*D68 -> 0 | G68: =B68*E68 -> 0
E69: Totals | F69: =SUM(F64:F68) -> 0 | G69: =SUM(G64:G68) -> 0

Sheet Devices (hidden)
C1: Device Database
C2: Notification Appliance Database
B5: Item# | C5: Device / Description | D5: Current Draw In Amperes
D6: Standby | E6: Alarm
B7: 1 | C7: Unused
B8: 2 | C8: Gentex GMH-24-X Horn | D8: 0 | E8: 0.038
B9: 3 | C9: Gentex GX90-4 Horn | D9: 0 | E9: 0.015
B10: 4 | C10: Gentex GX90S-4-15 Horn | D10: 0 | E10: 0.093
B11: 5 | C11: Gentex GX90S-4-1575 Horn | D11: 0 | E11: 0.108
B12: 6 | C12: Gentex GXS-4-1575 Strobe | D12: 0 | E12: 0.145
B13: 7 | C13: Gentex HG124 Horn | D13: 0 | E13: 0.03
B14: 8 | C14: Gentex HS24-110 Horn/Strobe | D14: 0 | E14: 0.14
B15: 9 | C15: Gentex HS24-15 Horn/Strobe | D15: 0 | E15: 0.077
B16: 10 | C16: Gentex HS24-15/75 Horn/Strobe | D16: 0 | E16: 0.087
B17: 11 | C17: Gentex HS24-30 Horn/Strobe | D17: 0 | E17: 0.087
B18: 12 | C18: Gentex HS24-60 Horn/Strobe | D18: 0 | E18: 0.114
B19: 13 | C19: Gentex HS24-75 Horn/Strobe | D19: 0 | E19: 0.116
B20: 14 | C20: Gentex SHG24-110 Horn/Strobe | D20: 0 | E20: 0.25
B21: 15 | C21: Gentex SHG24-15/75-C Horn/Strobe | D21: 0 | E21: 0.123
B22: 16 | C22: Gentex SHG24-15/75-W Horn/Strobe | D22: 0 | E22: 0.123
B23: 17 | C23: Gentex SHG24-15/75-Z Horn/Strobe | D23: 0 | E23: 0.123
B24: 18 | C24: Gentex SHG24-30 Horn/Strobe | D24: 0 | E24: 0.123
B25: 19 | C25: Gentex SHG24-30/75 Horn/Strobe | D25: 0 | E25: 0.172
B26: 20 | C26: Gentex SHG24-60 Horn/Strobe | D26: 0 | E26: 0.145
B27: 21 | C27: Gentex ST24-110 Strobe | D27: 0 | E27: 0.11
B28: 22 | C28: Gentex ST24-15 Strobe | D28: 0 | E28: 0.047
B29: 23 | C29: Gentex ST24-15/75 Strobe | D29: 0 | E29: 0.057
B30: 24 | C30: Gentex ST24-30 Strobe | D30: 0 | E30: 0.057
B31: 25 | C31: Gentex ST24-60 Strobe | D31: 0 | E31: 0.084
B32: 26 | C32: Gentex ST24-75 Strobe | D32: 0 | E32: 0.086
B33: 27 | C33: Silent Knight end of line relay EOL-1224RLY | D33: 0.015 | E33: 0.015
B34: 28 | C34: System Sensor H12/24 Horn | D34: 0 | E34: 0.025
B35: 29 | C35: System Sensor P24110 Horn/Strobe | D35: 0 | E35: 0.165
B36: 30 | C36: System Sensor P241575 Horn/Strobe | D36: 0 | E36: 0.074
B37: 31 | C37: System Sensor P2430 Horn/Strobe | D37: 0 | E37: 0.092
B38: 32 | C38: System Sensor P2475 Horn/Strobe | D38: 0 | E38: 0.148
B39: 33 | C39: System Sensor S2415 Strobe | D39: 0 | E39: 0.043
B40: 34 | C40: System Sensor S241575 Strobe | D40: 0 | E40: 0.049
B41: 35 | C41: System Sensor S2430 Strobe | D41: 0 | E41: 0.067
B42: 36 | C42: System Sensor S2475 Strobe | D42: 0 | E42: 0.123
B43: 37 | C43: System Sensor SS24110 Strobe | D43: 0 | E43: 0.14
B44: 38 | C44: Wheelock AMT-24-IS-VFR Strobe Horn | D44: 0 | E44: 0.04
B45: 39 | C45: Wheelock AMT-24-LSM-VFR Strobe Horn | D45: 0 | E45: 0.125
B46: 40 | C46: Wheelock AS-24110-HFR Strobe Horn | D46: 0 | E46: 0.202
B47: 41 | C47: Wheelock AS-241575-VFR Strobe Horn | D47: 0 | E47: 0.102
B48: 42 | C48: Wheelock AS-2415-VFR Strobe Horn | D48: 0 | E48: 0.087
B49: 43 | C49: Wheelock AS-2430-VFR Strobe Horn | D49: 0 | E49: 0.135
B50: 44 | C50: Wheelock AS-2475-VFR Strobe Horn | D50: 0 | E50: 0.156
B51: 45 | C51: Wheelock MIZ-24-R Mini-Horn | D51: 0 | E51: 0.012
B52: 46 | C52: Wheelock MIZ-24-W Mini-Horn | D52: 0 | E52: 0.012
B53: 47 | C53: User Defined
B54: 48 | C54: User Defined
B55: 49 | C55: User Defined
B56: 50 | C56: User Defined
B57: 51 | C57: User Defined
B58: 52 | C58: User Defined
B59: 53 | C59: User Defined
B60: 54 | C60: User Defined
B61: 55 | C61: User Defined
B62: 56 | C62: User Defined
B63: 57 | C63: User Defined
B64: 58 | C64: User Defined
B65: 59 | C65: User Defined
B66: 60 | C66: User Defined
B67: 61 | C67: User Defined
B68: 62 | C68: User Defined
B69: 63 | C69: User Defined
B70: 64 | C70: User Defined
B71: 65 | C71: User Defined
B72: 66 | C72: User Defined
B73: 67 | C73: User Defined
B74: 68 | C74: User Defined
B75: 69 | C75: User Defined
B76: 70 | C76: User Defined
B77: 71 | C77: User Defined
B78: 72 | C78: User Defined
B79: 73 | C79: User Defined
B80: 74 | C80: User Defined
B81: 75 | C81: User Defined
B82: 76 | C82: User Defined
B83: 77 | C83: User Defined
B84: 78 | C84: User Defined
B85: 79 | C85: User Defined
B86: 80 | C86: User Defined
B87: 81 | C87: User Defined
B88: 82 | C88: User Defined
B89: 83 | C89: User Defined
B90: 84 | C90: User Defined
B91: 85 | C91: User Defined
B92: 86 | C92: User Defined
B93: 87 | C93: User Defined
B94: 88 | C94: User Defined
B95: 89 | C95: User Defined
B96: 90 | C96: User Defined
B97: 91 | C97: User Defined
B98: 92 | C98: User Defined
B99: 93 | C99: User Defined
B100: 94 | C100: User Defined
B101: 95 | C101: User Defined
B102: 96 | C102: User Defined
B103: 97 | C103: User Defined
B104: 98 | C104: User Defined
B105: 99 | C105: User Defined
B106: 100 | C106: User Defined
B107: 101 | C107: User Defined
B108: 102 | C108: User Defined
B109: 103 | C109: User Defined
B110: 104 | C110: User Defined
B111: 105 | C111: User Defined
B112: 106 | C112: User Defined
B113: 107 | C113: User Defined
B114: 108 | C114: User Defined
B115: 109 | C115: User Defined
B116: 110 | C116: User Defined
B117: 111 | C117: User Defined
B118: 112 | C118: User Defined
B119: 113 | C119: User Defined
B120: 114 | C120: User Defined
B121: 115 | C121: User Defined
B122: 116 | C122: User Defined
B123: 117 | C123: User Defined
B124: 118 | C124: User Defined
B125: 119 | C125: User Defined
B126: 120 | C126: User Defined
B127: 121 | C127: User Defined
B128: 122 | C128: User Defined
B129: 123 | C129: User Defined
B130: 124 | C130: User Defined
B131: 125 | C131: User Defined
B132: 126 | C132: User Defined
B133: 127 | C133: User Defined
B134: 128 | C134: User Defined
B135: 129 | C135: User Defined
B136: 130 | C136: User Defined
B137: 131 | C137: User Defined
B138: 132 | C138: User Defined
B139: 133 | C139: User Defined
B140: 134 | C140: User Defined
B141: 135 | C141: User Defined
B142: 136 | C142: User Defined
B143: 137 | C143: User Defined
B144: 138 | C144: User Defined
B145: 139 | C145: User Defined
B146: 140 | C146: User Defined
B147: 141 | C147: User Defined
B148: 142 | C148: User Defined
B149: 143 | C149: User Defined
B150: 144 | C150: User Defined
B151: 145 | C151: User Defined
B152: 146 | C152: User Defined
B153: 147 | C153: User Defined
B154: 148 | C154: User Defined
B155: 149 | C155: User Defined
B156: 150 | C156: User Defined

Sheet Data (hidden)
A1: Conductor Properties NEC Chap. 9
A2: Item | B2: Wire Type | C2: Ohms Per 1000 ft.
A3: 1 | B3: #12 Solid | C3: 1.59
A4: 2 | B4: #12 Stranded | C4: 1.59
A5: 3 | B5: #14 Solid | C5: 2.52
A6: 4 | B6: #14 Stranded | C6: 2.52
A7: 5 | B7: #16 Solid | C7: 4.02
A8: 6 | B8: #16 Stranded | C8: 4.02
A9: 7 | B9: #18 Solid | C9: 6.39
A10: 8 | B10: #18 Stranded | C10: 6.39
A12: Cell Links For The Wire Type Drop Down Boxes Associated With Each 5395
B13: 5395(1) | C13: 5395(2) | D13: 5395(3) | E13: 5395(4) | F13: 5395(5) | G13: 5395(6) | H13: 5395(7) | I13: 5395(8)
A14: 1 | B14: 3 | C14: 1 | D14: 1 | E14: 1 | F14: 1 | G14: 1 | H14: 1 | I14: 1
A15: 2 | B15: 1 | C15: 1 | D15: 1 | E15: 1 | F15: 1 | G15: 1 | H15: 1 | I15: 1
A16: 3 | B16: 1 | C16: 1 | D16: 1 | E16: 1 | F16: 1 | G16: 1 | H16: 1 | I16: 1
A17: 4 | B17: 1 | C17: 1 | D17: 1 | E17: 1 | F17: 1 | G17: 1 | H17: 1 | I17: 1
A18: 5 | B18: 1 | C18: 1 | D18: 1 | E18: 1 | F18: 1 | G18: 1 | H18: 1 | I18: 1
A19: 6 | B19: 1 | C19: 1 | D19: 1 | E19: 1 | F19: 1 | G19: 1 | H19: 1 | I19: 1
A23: 1 | B23: Notification Appl Circuit
A24: 2 | B24: Aux Power Circuit
A25: 3 | B25: Aux Power Circuit
B30: I/O1 | C30: 1
B31: I/O2 | C31: 1
B32: I/O3 | C32: 1
B33: I/O4 | C33: 1
B34: I/O5 | C34: 1
B35: I/O6 | C35: 1
